bitfinex-derivatives/quotes_SOLF0:USTF0_20241027
["timestamp","ask_amount","ask_price","bid_price","bid_amount"]
[1730017295513,7.4148,174.14,174.09,11.04774117]
[1730017296412,4.54,174.14,174.09,11.04774117]
[1730017296609,2.8751,174.13,174.09,11.04774117]
[1730017298317,4.54,174.14,174.09,11.04774117]
[1730017299323,2.875,174.13,174.09,11.04774117]
[1730017302428,4.54,174.14,174.09,13.92334117]
[1730017302920,2.875,174.13,174.09,11.04774117]
[1730017303116,4.54,174.14,174.09,11.04774117]
[1730017303316,4.54,174.14,174.06,11.04774117]
[1730017303518,2.8754,174.11,174.06,11.04774117]
[1730017303721,4.54,174.14,174.06,11.04774117]
[1730017304314,4.54,174.14,174.06,13.92374117]
[1730017304516,4.54,174.14,174.08,11.04774117]
[1730017304721,7.4149,174.14,174.08,13.92344117]
[1730017304922,7.4149,174.14,174.08,11.04774117]
[1730017305516,4.54,174.13,174.08,11.04774117]
[1730017306325,4.54,174.13,174.1,11.04774117]
[1730017306716,14.64084117,174.2,174.13,2.8749]
[1730017306717,4.54,174.17,174.13,2.8749]
[1730017306927,4.54,174.17,174.13,13.92264117]
[1730017307123,4.54,174.17,174.13,11.04774117]
[1730017307323,7.4143,174.17,174.13,11.04774117]
[1730017307628,4.54,174.17,174.13,11.04774117]
[1730017308232,2.8745,174.16,174.14,7.07020226]
[1730017308426,4.54,174.17,174.14,7.07020226]
[1730017308724,3.5931,174.2,174.16,7.07020226]
[1730017308928,4.54,174.17,174.16,7.07020226]
[1730017310125,4.54,174.18,174.16,7.07020226]
[1730017311625,55.92,174.22,174.17,7.07020226]
[1730017311833,4.54,174.21,174.19,7.07020226]
[1730017312023,11.61020226,174.21,174.08,4.54]
[1730017312222,2.874,174.19,174.16,7.07020226]
[1730017312922,11.61020226,174.21,174.16,7.07020226]
[1730017313132,2.8742,174.18,174.16,7.07020226]
[1730017314034,2.8742,174.18,174.12,2.875]
[1730017314221,2.8742,174.18,174.15,7.07020226]
[1730017314525,4.54,174.17,174.15,7.07020226]
[1730017314729,4.54,174.17,174.14,7.07020226]
[1730017314928,4.54,174.17,174.15,7.07020226]
[1730017316430,7.4143,174.17,174.15,7.07020226]
[1730017317818,7.4143,174.17,174.12,2.8751]
[1730017318027,7.4143,174.17,174.15,7.07020226]
[1730017318227,4.54,174.17,174.15,7.07020226]
[1730017318824,7.4144,174.17,174.15,7.07020226]
[1730017320227,7.4144,174.17,174.11,2.8752]
[1730017320228,7.4144,174.17,174.13,7.07020226]
[1730017320427,7.4144,174.17,174.1,2.4049]
[1730017320428,4.54,174.17,174.1,2.4049]
[1730017320728,4.54,174.17,174.1,7.07020226]
[1730017320729,2.8746,174.15,174.1,7.07020226]
[1730017321331,2.8748,174.14,174.1,7.07020226]
[1730017321531,4.54,174.13,174.1,7.07020226]
[1730017323237,7.415,174.13,174.1,7.07020226]
[1730017323629,7.415,174.13,174.12,7.07020226]
[1730017323630,4.54,174.13,174.12,7.07020226]
[1730017326434,4.54,174.13,174.03,4.54]
[1730017326630,2.8754,174.11,174.09,7.07020226]
[1730017327022,4.54,174.13,174.09,7.07020226]
[1730017327228,4.54,174.13,174.11,7.07020226]
[1730017327431,4.54,174.13,174.12,7.07020226]
[1730017329136,4.54,174.13,174.1,2.8754]
[1730017329339,4.54,174.13,174.12,7.07020226]
[1730017329833,2.8752,174.12,174.07,2.8758]
[1730017330039,2.8752,174.12,174.1,7.07020226]
[1730017330339,4.54,174.13,174.11,7.07020226]
[1730017330635,7.415,174.13,174.11,7.07020226]
[1730017332234,4.54,174.13,174.11,7.07020226]
[1730017333429,2.8745,174.16,174.11,9.94550226]
[1730017333631,7.3545,174.16,174.14,7.07020226]
[1730017333932,2.8745,174.16,174.14,7.07020226]
[1730017334135,7.3545,174.16,174.14,7.07020226]
[1730017334735,4.48,174.16,174.0,3.5632]
[1730017334935,4.48,174.16,174.1,7.07020226]
[1730017336037,2.8753,174.11,174.09,7.07020226]
[1730017336334,4.48,174.12,174.09,7.07020226]
[1730017336539,2.8756,174.09,174.05,7.07020226]
[1730017337239,2.8756,174.09,174.07,7.07020226]
[1730017337442,7.3553,174.11,174.08,7.07020226]
[1730017337835,4.48,174.11,174.08,7.07020226]
[1730017338045,7.3553,174.11,174.08,7.07020226]
[1730017338544,4.48,174.11,174.0,3.5632]
[1730017338844,2.8756,174.1,174.07,7.07020226]
[1730017340144,4.48,174.11,174.07,7.07020226]
[1730017340345,2.8755,174.1,174.07,7.07020226]
[1730017343542,4.48,174.11,174.07,7.07020226]
[1730017343735,4.48,174.11,174.08,7.07020226]
[1730017345548,4.48,174.11,174.0,3.5632]
[1730017345775,2.8755,174.1,174.06,7.07020226]
[1730017349374,7.3554,174.11,174.08,7.07020226]
[1730017350675,2.8755,174.1,174.08,7.07020226]
[1730017350972,11.55020226,174.11,174.05,7.07020226]
[1730017351474,7.07020226,174.09,174.02,2.8767]
[1730017351666,4.48,174.11,174.03,7.07020226]
[1730017351667,7.07020226,174.08,174.03,7.07020226]
[1730017351863,4.48,174.07,174.03,7.07020226]
[1730017352466,7.07020226,174.06,174.0,1.1653]
[1730017352776,7.07020226,174.05,173.99,7.07020226]
[1730017354277,2.8766,174.04,173.99,7.07020226]
[1730017354468,4.48,174.03,173.99,7.07020226]
[1730017355067,4.48,174.03,174.01,7.07020226]
[1730017356173,4.48,174.03,173.99,7.07020226]
[1730017357167,7.3567,174.03,173.99,7.07020226]
[1730017357972,2.8767,174.03,173.99,7.07020226]
[1730017358276,4.48,174.02,174.01,7.07020226]
[1730017358474,4.48,174.03,174.01,7.07020226]
[1730017361271,4.48,174.03,174.02,7.07020226]
[1730017362872,55.88,174.1,174.02,7.07020226]
[1730017363070,62.95020226,174.1,174.04,7.07020226]
[1730017363268,4.42,174.09,174.06,7.07020226]
[1730017365174,55.88,174.1,174.06,7.07020226]
[1730017365376,4.42,174.09,174.07,9.94610226]
[1730017366169,17.28,174.18,174.07,7.07020226]
[1730017366374,55.9,174.19,174.1,7.07020226]
[1730017366375,11.49020226,174.17,174.1,7.07020226]
[1730017367284,2.8746,174.15,174.1,7.07020226]
[1730017368169,4.42,174.14,174.1,7.07020226]
[1730017369482,4.42,174.14,174.12,7.07020226]
[1730017369786,4.42,174.13,174.12,7.07020226]
[1730017370376,4.42,174.13,174.12,9.94530226]
[1730017370574,4.42,174.13,174.12,7.07020226]
[1730017370776,4.42,174.16,174.12,7.07020226]
[1730017370975,4.42,174.16,174.13,7.07020226]
[1730017372401,4.42,174.17,174.15,7.07020226]
[1730017376286,2.8746,174.15,174.1,2.8754]
[1730017376589,4.42,174.17,174.13,7.07020226]
[1730017376886,4.42,174.17,174.01,6.40138369]
[1730017376887,7.07020226,174.14,174.01,6.40138369]
[1730017377084,2.8759,174.08,174.03,2.8766]
[1730017377387,8.1273,174.13,174.03,7.07020226]
[1730017377388,4.42,174.07,174.03,7.07020226]
[1730017377588,4.42,174.06,174.03,7.07020226]
[1730017377880,4.42,174.06,174.02,7.07020226]
[1730017378278,2.8763,174.05,173.99,13.92658462]
[1730017378783,4.42,174.06,173.99,13.92658462]
[1730017378784,4.42,174.06,173.99,11.04948462]
[1730017379379,7.2963,174.06,174.01,2.8769]
[1730017380183,2.8763,174.06,174.01,2.8769]
[1730017380483,7.2963,174.06,174.01,2.8769]
[1730017380680,4.42,174.07,174.03,2.8766]
[1730017381580,2.8761,174.06,174.01,13.92628462]
[1730017382585,7.296,174.07,174.02,2.8767]
[1730017383489,2.8761,174.06,174.02,2.8767]
[1730017385977,4.42,174.07,173.96,4.42]
[1730017386179,2.8765,174.04,174.0,2.877]
[1730017386387,3.6345,174.06,173.96,4.42]
[1730017386688,3.6345,174.06,173.94,3.7595]
[1730017386689,14.68398462,174.06,173.95,11.04948462]
[1730017386996,3.6345,174.06,173.98,11.04948462]
[1730017387194,2.8766,174.04,174.0,2.8771]
[1730017387788,2.8767,174.03,173.99,2.8772]
[1730017390092,2.8766,174.03,173.98,11.04948462]
[1730017390291,4.42,174.05,173.98,11.04948462]
[1730017390791,2.8767,174.03,173.98,13.92688462]
[1730017391092,4.42,174.05,173.98,13.92688462]
[1730017391489,4.42,174.05,173.98,11.04948462]
[1730017392186,2.8766,174.03,173.98,11.04948462]
[1730017392891,2.8769,174.02,173.98,11.04948462]
[1730017394091,2.8766,174.04,173.99,2.8772]
[1730017394687,2.877,174.01,173.96,2.8776]
[1730017394996,4.46,174.0,173.94,11.04948462]
[1730017395200,4.46,174.0,173.97,2.8776]
[1730017396485,7.3371,174.0,173.96,2.8777]
[1730017396686,4.46,174.0,173.96,2.8777]
[1730017398185,7.3371,174.0,173.96,2.8777]
[1730017398386,7.3371,174.0,173.98,7.07452982]
[1730017399697,7.3371,174.0,173.95,2.8778]
[1730017400015,7.3371,174.0,173.96,7.07452982]
[1730017400190,2.8776,173.97,173.95,7.07452982]
[1730017400496,2.5102,173.99,173.95,7.07452982]
[1730017400691,2.5102,173.99,173.98,7.07452982]
[1730017400894,6.9702,173.99,173.98,7.07452982]
[1730017401192,1.2293,173.99,173.98,7.07452982]
[1730017401495,5.6893,173.99,173.98,7.07452982]
[1730017407198,5.6893,173.99,173.96,2.8777]
[1730017407403,5.6893,173.99,173.98,7.07452982]
[1730017414708,4.46,173.99,173.98,7.07452982]
[1730017415011,4.46,173.99,173.98,9.95192982]
[1730017416008,1.2809,174.05,173.98,9.95192982]
[1730017416009,2.5185,174.06,173.98,7.07452982]
[1730017416312,2.8766,174.04,174.01,7.07452982]
[1730017416509,11.53452982,174.05,173.94,1.1849]
[1730017416709,7.07452982,174.04,173.99,7.07452982]
[1730017418112,2.8767,174.03,173.99,7.07452982]
[1730017421608,9.95122982,174.03,173.98,2.8773]
[1730017423212,9.95122982,174.03,173.98,9.95182982]
[1730017424116,11.53452982,174.05,173.98,7.07452982]
[1730017424311,2.8765,174.04,174.0,2.8771]
[1730017424714,2.8762,174.06,174.0,7.07452982]
[1730017424913,62.97452982,174.07,174.02,7.07452982]
[1730017424914,55.9,174.07,174.02,7.07452982]
[1730017425107,4.36,174.06,174.02,7.07452982]
[1730017425708,4.36,174.06,174.02,9.95132982]
[1730017426514,7.2361,174.06,174.01,2.8769]
[1730017427616,4.36,174.05,174.01,2.8769]
[1730017427814,2.8761,174.06,174.01,2.8769]
[1730017428015,4.36,174.05,174.01,2.8769]
[1730017433321,7.2363,174.05,174.01,2.8769]
[1730017437033,4.36,174.05,174.0,7.07452982]
[1730017437218,20.10161071,174.17,174.04,7.07452982]
[1730017437420,2.8755,174.1,174.05,9.95072982]
[1730017438226,4.36,174.13,174.1,2.8754]
[1730017438528,62.97452982,174.14,174.08,7.07452982]
[1730017438720,4.36,174.13,174.08,7.07452982]
[1730017438920,7.2351,174.13,174.08,7.07452982]
[1730017439121,4.36,174.12,174.06,7.07452982]
[1730017439329,4.36,174.12,174.08,7.07452982]
[1730017439551,4.36,174.16,174.11,7.07452982]
[1730017439833,4.36,174.16,174.13,7.07452982]
[1730017440324,4.36,174.16,174.11,7.07452982]
[1730017440627,7.07452982,174.15,174.09,7.07452982]
[1730017441023,7.07452982,174.14,174.09,7.07452982]
[1730017442327,2.8751,174.13,174.08,2.8758]
[1730017442526,4.36,174.12,174.08,9.95032982]
[1730017444729,11.43452982,174.12,174.03,1.2154]
[1730017444924,2.8755,174.1,174.06,7.07452982]
[1730017445119,4.36,174.12,174.08,7.07452982]
[1730017445933,4.36,174.14,174.1,7.07452982]
[1730017446132,2.8751,174.13,174.1,7.07452982]
[1730017446334,7.07452982,174.13,174.03,1.2154]
[1730017446533,7.07452982,174.13,174.07,7.07452982]
[1730017446726,2.8755,174.1,174.07,7.07452982]
[1730017447536,2.8755,174.1,174.05,2.8761]
[1730017447930,2.8755,174.1,174.07,7.07452982]
[1730017449633,4.36,174.14,174.09,7.07452982]
[1730017449830,7.235,174.13,174.09,9.95012982]
[1730017450531,7.235,174.13,174.09,7.07452982]
[1730017451129,4.36,174.13,174.09,7.07452982]
[1730017451430,2.8753,174.12,174.09,7.07452982]
[1730017452938,7.2353,174.12,174.09,7.07452982]
[1730017458845,7.07452982,174.1,174.01,7.07452982]
[1730017459038,7.07452982,174.09,174.01,7.07452982]
[1730017459237,4.34,174.08,174.01,7.07452982]
[1730017459438,2.8764,174.05,174.01,7.07452982]
[1730017459636,4.34,174.04,174.01,7.07452982]
[1730017460237,4.34,174.04,174.02,7.07452982]
[1730017460543,11.41452982,174.04,173.85,7.28120128]
[1730017460738,4.34,174.04,173.98,7.07452982]
[1730017461338,7.07452982,174.06,173.98,7.07452982]
[1730017461647,4.34,174.03,173.98,7.07452982]
[1730017462042,2.8768,174.02,173.98,7.07452982]
[1730017463052,4.34,174.03,173.99,7.07452982]
[1730017463239,7.2166,174.03,173.99,7.07452982]
[1730017464143,7.07452982,174.0,173.82,112.19150851]
[1730017464352,7.2174,173.99,173.93,9.95282982]
[1730017465343,7.2174,173.99,173.95,7.07452982]
[1730017465748,2.8777,173.97,173.92,2.8784]
[1730017465943,2.8777,173.97,173.93,7.07452982]
[1730017468041,2.8777,173.97,173.92,2.8784]
[1730017468345,3.6493,174.02,173.92,7.07452982]
[1730017468541,4.34,174.01,173.92,7.07452982]
[1730017468847,7.07452982,174.0,173.92,7.07452982]
[1730017469252,2.8775,173.98,173.93,2.8782]
[1730017469452,4.34,173.97,173.93,2.8782]
[1730017470143,7.07452982,174.01,173.95,7.07452982]
[1730017470350,3.6493,174.02,173.97,7.07452982]
[1730017470550,4.34,174.0,173.97,7.07452982]
[1730017470944,4.34,174.0,173.97,9.95212982]
[1730017472548,4.34,173.99,173.97,9.95212982]
[1730017475551,3.7891,174.08,173.97,7.07452982]
[1730017475849,2.8766,174.04,173.99,9.95172982]
[1730017476155,4.34,174.03,173.99,9.95172982]
[1730017476451,4.34,174.02,173.99,9.95172982]
[1730017477871,4.34,174.02,173.91,4.9665915]
[1730017477872,3.7891,174.08,174.01,7.07452982]
[1730017478044,4.34,174.05,174.03,7.07452982]
[1730017478446,7.2164,174.05,173.99,2.8771]
[1730017478655,7.2164,174.05,174.0,7.07452982]
[1730017479558,7.2164,174.05,174.0,9.95162982]
[1730017479744,7.2164,174.05,174.01,7.07452982]
[1730017481048,4.34,174.05,174.01,9.95142982]
[1730017482353,4.34,174.05,174.02,2.8767]
[1730017482549,4.34,174.05,174.03,7.07452982]
[1730017483658,4.34,174.05,173.94,4.34]
[1730017483845,4.34,174.05,174.02,7.07452982]
[1730017492276,4.34,174.05,174.02,9.95112982]
[1730017493077,4.34,174.05,174.02,2.8766]
[1730017493279,4.34,174.05,174.03,7.07452982]
[1730017494477,7.2163,174.05,174.03,7.07452982]
[1730017494677,4.34,174.05,174.03,7.07452982]
[1730017496284,2.876,174.07,174.03,7.07452982]
[1730017496492,4.44,174.06,174.03,7.07452982]
[1730017497283,7.3162,174.06,174.03,7.07452982]
[1730017497585,4.44,174.06,174.03,7.07452982]
[1730017500285,2.876,174.07,174.05,7.07452982]
[1730017500286,4.44,174.07,174.05,7.07452982]
[1730017500781,7.316,174.07,174.05,7.07452982]
[1730017501082,7.316,174.07,173.97,4.44]
[1730017501083,4.44,174.07,174.02,9.95122982]
[1730017502488,2.8762,174.06,174.02,9.95122982]
[1730017503584,4.44,174.07,173.83,2.84852423]
[1730017503781,2.8771,174.01,173.97,9.95202982]
[1730017503977,4.44,174.02,173.97,7.07452982]
[1730017504284,2.8771,174.0,173.97,7.07452982]
[1730017504688,4.44,174.02,173.97,7.07452982]
[1730017505284,11.51452982,174.02,173.97,7.07452982]
[1730017505781,2.877,174.01,173.97,9.95212982]
[1730017506185,2.8771,174.0,173.95,9.95232982]
[1730017506684,2.8771,174.0,173.95,7.07452982]
[1730017508192,7.07452982,173.99,173.89,3.719]
[1730017508389,2.8777,173.97,173.93,9.95272982]
[1730017509590,7.3175,173.98,173.93,9.95272982]
[1730017510487,4.44,173.98,173.89,10.12807961]
[1730017510683,2.8777,173.97,173.93,7.07452982]
[1730017511493,7.3175,173.98,173.94,7.07452982]
[1730017513684,7.07452982,173.97,173.77,338.0]
[1730017513886,9.95262982,173.94,173.88,2.8789]
[1730017514088,4.44,173.93,173.88,9.95342982]
[1730017515388,7.3183,173.93,173.88,2.8789]
[1730017515594,7.07452982,173.92,173.88,2.8789]
[1730017515890,9.95352982,173.89,173.84,9.28170947]
[1730017516092,4.44,173.88,173.84,2.8796]
[1730017516890,4.44,173.88,173.84,9.95412982]
[1730017517084,4.44,173.88,173.85,2.8796]
[1730017519693,4.44,173.88,173.84,7.07452982]
[1730017519897,4.44,173.88,173.86,2.8794]
[1730017521793,4.44,173.88,173.84,7.07452982]
[1730017521994,4.44,173.88,173.85,2.8795]
[1730017522590,14.39362982,173.88,173.84,2.8797]
[1730017523795,7.3191,173.88,173.84,2.8797]
[1730017524002,7.07452982,173.85,173.79,6.3973393]
[1730017524199,7.07452982,173.82,173.76,7.07452982]
[1730017524402,11.51452982,173.81,173.72,6.3973393]
[1730017524720,9.95522982,173.79,173.74,2.8814]
[1730017524900,4.44,173.78,173.74,2.8814]
[1730017525297,4.44,173.78,173.73,9.95602982]
[1730017525901,11.51452982,173.78,173.71,5.269]
[1730017526199,7.07452982,173.76,173.7,12.03947843]
[1730017526398,2.8809,173.78,173.73,7.07452982]
[1730017526706,4.44,173.77,173.73,7.07452982]
[1730017526904,2.8799,173.84,173.75,7.07452982]
[1730017527101,3.6697,173.88,173.76,7.07452982]
[1730017527304,7.07452982,173.82,173.76,7.07452982]
[1730017527501,4.44,173.81,173.76,7.07452982]
[1730017528404,4.44,173.8,173.76,7.07452982]
[1730017530099,4.44,173.8,173.72,1.2024]
[1730017530304,7.07452982,173.79,173.74,9.95592982]
[1730017530706,2.8808,173.78,173.73,2.8815]
[1730017531207,7.07452982,173.77,173.73,2.8815]
[1730017531501,4.44,173.76,173.73,2.8815]
[1730017532399,4.44,173.76,173.74,2.8813]
[1730017533809,2.8805,173.8,173.73,7.07452982]
[1730017534003,4.44,173.79,173.76,2.8811]
[1730017534309,4.44,173.78,173.74,7.07452982]
[1730017535306,4.44,173.78,173.76,2.8811]
[1730017536708,4.44,173.78,173.76,7.07452982]
[1730017536906,4.44,173.78,173.71,1.2077]
[1730017537104,4.44,173.78,173.76,7.07452982]
[1730017537305,4.44,173.78,173.77,2.8809]
[1730017539403,7.07452982,173.82,173.79,2.8805]
[1730017539903,4.44,173.81,173.79,2.8805]
[1730017540907,2.8796,173.85,173.77,7.07452982]
[1730017541114,7.07452982,173.83,173.81,2.8802]
[1730017541309,3.6697,173.88,173.78,7.07452982]
[1730017541504,9.95392982,173.86,173.82,2.8801]
[1730017543814,4.44,173.87,173.82,2.8801]
[1730017544010,7.07452982,173.83,173.73,1.1676]
[1730017544315,7.07452982,173.81,173.77,2.8808]
[1730017544510,7.07452982,173.81,173.74,7.07452982]
[1730017545108,7.07452982,173.81,173.76,2.8811]
[1730017545307,7.07452982,173.81,173.74,7.07452982]
[1730017545512,4.44,173.82,173.77,7.07452982]
[1730017545819,4.64,173.81,173.77,7.07452982]
[1730017546207,4.64,173.81,173.79,2.8805]
[1730017546614,4.64,173.81,173.76,7.07452982]
[1730017546806,11.71452982,173.81,173.75,7.07452982]
[1730017547011,11.71452982,173.81,173.77,2.8808]
[1730017548306,14.59492982,173.81,173.77,2.8808]
[1730017548713,4.64,173.81,173.61,338.0]
[1730017548911,7.07452982,173.78,173.72,7.07452982]
[1730017549112,4.64,173.77,173.72,7.07452982]
[1730017549314,4.64,173.77,173.73,2.8815]
[1730017549513,4.64,173.76,173.72,7.07452982]
[1730017550217,4.64,173.76,173.66,2.3781]
[1730017550514,4.64,173.76,173.72,2.8816]
[1730017551715,4.64,173.76,173.73,2.8816]
[1730017551913,4.64,173.76,173.71,7.07452982]
[1730017552418,4.64,173.76,173.68,11.0747998]
[1730017552613,4.64,173.76,173.72,2.8816]
[1730017553717,4.64,173.76,173.68,11.0747998]
[1730017554010,4.64,173.76,173.73,2.8815]
[1730017554416,4.64,173.76,173.66,2.3781]
[1730017554417,4.64,173.76,173.71,11.0747998]
[1730017555118,4.64,173.76,173.75,2.8812]
[1730017555717,2.8807,173.79,173.75,2.8812]
[1730017555914,2.8807,173.79,173.76,2.8811]
[1730017555915,4.64,173.78,173.76,2.8811]
[1730017556119,4.64,173.78,173.71,11.0747998]
[1730017556314,2.8815,173.74,173.64,1.2857]
[1730017556515,4.64,173.73,173.66,11.0747998]
[1730017557612,4.64,173.73,173.71,2.8818]
[1730017558419,4.64,173.73,173.71,2.8817]
[1730017558618,7.5216,173.73,173.65,2.4198]
[1730017558924,4.64,173.73,173.66,11.0747998]
[1730017559618,4.64,173.73,173.71,2.8818]
[1730017561517,4.64,173.73,173.71,2.8819]
[1730017561715,4.64,173.73,173.66,11.0747998]
[1730017562116,4.64,173.73,173.7,2.882]
[1730017562921,4.64,173.73,173.66,11.0747998]
[1730017563123,4.64,173.73,173.71,2.8819]
[1730017563329,4.64,173.73,173.66,11.0747998]
[1730017563525,4.64,173.73,173.72,2.8817]
[1730017563724,4.64,173.73,173.66,11.0747998]
[1730017564131,4.64,173.73,173.68,2.8824]
[1730017564334,4.64,173.73,173.66,11.0747998]
[1730017565125,4.64,173.73,173.72,2.8817]
[1730017568636,2.4698,173.8,173.71,11.0747998]
[1730017568838,4.64,173.79,173.76,2.8809]
[1730017569135,4.64,173.79,173.71,11.0747998]
[1730017570345,2.8807,173.78,173.74,2.8813]
[1730017571446,4.64,173.79,173.71,11.0747998]
[1730017571639,4.64,173.79,173.7,11.0747998]
[1730017572248,4.64,173.79,173.72,11.0747998]
[1730017573341,4.64,173.79,173.76,2.881]
[1730017575436,4.58,173.78,173.67,2.81334636]
[1730017575650,2.465,173.84,173.67,11.0747998]
[1730017575651,7.461,173.77,173.67,11.0747998]
[1730017575856,4.58,173.76,173.67,11.0747998]
[1730017576245,4.58,173.76,173.65,2.4198]
[1730017576246,4.58,173.76,173.71,7.08799272]
[1730017576452,7.4612,173.76,173.72,2.8817]
[1730017577751,9.96929272,173.75,173.72,2.8817]
[1730017578246,2.8813,173.75,173.72,2.8817]
[1730017578949,2.8813,173.75,173.66,11.07747144]
[1730017579152,2.8813,173.75,173.71,2.8819]
[1730017580542,4.58,173.76,173.66,11.07747144]
[1730017580743,7.4611,173.76,173.72,2.8817]
[1730017581554,2.8815,173.74,173.69,2.8821]
[1730017581754,4.58,173.76,173.66,11.07747144]
[1730017581953,3.7006,173.75,173.66,11.07747144]
[1730017583445,2.8817,173.73,173.69,2.8821]
[1730017583646,3.7006,173.75,173.66,11.07747144]
[1730017583842,4.58,173.72,173.7,2.8819]
[1730017584042,4.58,173.72,173.66,11.07747144]
[1730017584547,4.58,173.72,173.7,2.8819]
[1730017585453,4.58,173.72,173.71,2.8819]
[1730017587944,4.58,173.74,173.71,11.07747144]
[1730017588250,4.58,173.76,173.71,11.07747144]
[1730017588650,2.8807,173.79,173.75,2.8811]
[1730017588651,4.58,173.77,173.75,2.8811]
[1730017590249,4.58,173.77,173.71,11.07747144]
[1730017590452,2.8801,173.82,173.78,2.8807]
[1730017590760,4.58,173.81,173.78,2.8807]
[1730017590947,2.8796,173.85,173.76,11.07747144]
[1730017591256,4.58,173.84,173.76,11.07747144]
[1730017591647,4.58,173.84,173.78,11.07747144]
[1730017591957,4.58,173.84,173.8,2.8803]
[1730017592454,2.8801,173.82,173.78,2.8806]
[1730017592851,4.58,173.84,173.76,11.07747144]
[1730017593049,7.4598,173.84,173.78,2.8807]
[1730017593249,7.4598,173.84,173.76,11.07747144]
[1730017593856,7.4598,173.84,173.79,2.8804]
[1730017594445,7.4598,173.84,173.8,2.8803]
[1730017595259,4.58,173.84,173.81,2.8802]
[1730017596256,1.2872,173.86,173.81,2.8802]
[1730017596460,4.58,173.85,173.78,11.07747144]
[1730017598364,4.58,173.85,173.82,2.88]
[1730017598663,2.8794,173.86,173.82,2.88]
[1730017598875,4.58,173.85,173.82,2.88]
[1730017601462,4.58,173.85,173.83,2.8798]
[1730017604266,4.58,173.85,173.82,7.0791438]
[1730017604565,4.58,173.85,173.83,2.8799]
[1730017606470,4.58,173.85,173.82,9.9590438]
[1730017611360,2.8795,173.86,173.82,9.9590438]
[1730017611566,4.48,173.85,173.84,2.8796]
[1730017611773,4.48,173.85,173.84,9.9587438]
[1730017614565,2.4635,173.91,173.84,7.0791438]
[1730017614776,4.48,173.88,173.87,2.8792]
[1730017615372,2.8787,173.91,173.86,7.0791438]
[1730017615570,4.48,173.89,173.86,7.0791438]
[1730017616577,7.359,173.89,173.85,7.0791438]
[1730017617469,7.359,173.89,173.78,3.6144]
[1730017617775,7.359,173.89,173.85,2.8795]
[1730017618075,14.4381438,173.89,173.85,2.8795]
[1730017619980,11.5591438,173.89,173.85,2.8795]
[1730017620278,2.8793,173.87,173.83,2.8798]
[1730017621778,2.8793,173.87,173.82,7.0791438]
[1730017621779,2.8793,173.87,173.84,2.8797]
[1730017621978,9.9582438,173.88,173.84,2.8797]
[1730017622583,7.0791438,173.87,173.82,2.88]
[1730017623370,2.8795,173.86,173.82,2.88]
[1730017623573,4.48,173.85,173.82,2.88]
[1730017624082,4.48,173.85,173.82,2.8801]
[1730017624279,4.48,173.85,173.83,7.0791438]
[1730017624673,4.48,173.85,173.84,2.8798]
[1730017625880,4.48,173.85,173.84,9.9589438]
[1730017629075,4.48,173.88,173.84,7.0791438]
[1730017629289,4.48,173.88,173.87,9.9584438]
[1730017629877,2.8789,173.9,173.87,9.9584438]
[1730017630084,4.48,173.91,173.89,7.0791438]
[1730017633083,2.4213,173.96,173.89,7.0791438]
[1730017633281,4.48,173.95,173.89,9.9579438]
[1730017634188,2.8784,173.93,173.89,9.9579438]
[1730017640793,2.8784,173.93,173.9,7.0791438]
[1730017641295,4.38,173.92,173.9,2.8786]
[1730017641482,4.38,173.92,173.78,3.6144]
[1730017641682,4.38,173.92,173.87,7.0791438]
[1730017642296,2.8786,173.91,173.87,9.9583438]
[1730017642495,7.0791438,173.9,173.78,3.6144]
[1730017642696,7.0791438,173.9,173.83,7.0791438]
[1730017642896,7.0791438,173.9,173.83,9.9590438]